Cogmind - Beta 14 @@@ ROGUE MODE // 2025.05.03 @ 12:56:08 Player: Scared Dad Result: Self-destructed Performance ------------- Evolutions (2) 1000 Regions Visited (5) 1000 Robots Destroyed (13) 65 Value Destroyed (326) 326 Prototype IDs (23) 460 Alien Tech Used (0) 0 Bonus (300) 300 TOTAL SCORE: 3151 Bonus ------- Aligned with FarCom 300 Cogmind --------- Core Integrity 537/550 Matter 245/300 Energy 125/125 System Corruption 0% Temperature Cool (0) Movement Treading (160) Location -8/Materials Parts ------- > --- POWER (1) -------- Light Ion Engine > --- PROPULSION (3) --- Light Treads Light Treads Titanium Leg > --- UTILITY (4) ------ Small Storage Unit Improved Targeting Computer Hardened Medium Armor Plating Shield Generator > --- WEAPON (3) ------- Flak Gun Flak Gun Flak Gun > --- INVENTORY (8) ---- Light Nuclear Core Armored Huge Wheel Armored Huge Wheel Flak Gun AWS/Gauss Peak State ------------ > --- POWER ------------ Light Nuclear Core > --- PROPULSION ------- Light Treads Light Treads Titanium Leg > --- UTILITY ---------- Small Storage Unit Improved Targeting Computer Hardened Medium Armor Plating Shield Generator > --- WEAPON ----------- Flak Gun Flak Gun Flak Gun > --- INVENTORY -------- Improved Ion Engine Armored Huge Wheel Improved Light Armor Plating Flak Gun AWS/Gauss [Rating: 31] Favorites ----------- Power Ion Engine Engine Ion Engine Power Core Light Nuclear Core Propulsion Light Treads Treads Light Treads Leg Titanium Leg Wheel Wheel Utility Small Storage Unit Device Shield Generator Storage Small Storage Unit Processor Improved Targeting Computer Protection Medium Armor Plating Weapon Assault Rifle Ballistic Gun Assault Rifle Build | -11 -10 -10 -10 -9 -8 ------- Run | Yrd Mat Min Exi Min Mat Slots Evolved 4 | . . . . . 4 Power . | . . . . . . Propulsion 1 | . . . . . 1 Utility 2 | . . . . . 2 Weapon 1 | . . . . . 1 Parts Attached 31 | 6 1 . 4 5 15 Power 4 | 1 . . . 1 2 Engine 3 | 1 . . . 1 1 Core 1 | . . . . . 1 Reactor . | . . . . . . Propulsion 7 | 2 . . 2 . 3 Treads 3 | . . . 2 . 1 Leg 2 | . . . . . 2 Wheel 2 | 2 . . . . . Hover . | . . . . . . Flight . | . . . . . . Utility 9 | 1 . . 1 2 5 Device 1 | . . . . . 1 Storage 3 | 1 . . 1 . 1 Processor 2 | . . . . 1 1 Hackware . | . . . . . . Protection 3 | . . . . 1 2 Artifact . | . . . . . . Weapon 11 | 2 1 . 1 2 5 Energy Gun . | . . . . . . Energy Cannon . | . . . . . . Ballistic Gun 11 | 2 1 . 1 2 5 Ballistic Cannon . | . . . . . . Launcher . | . . . . . . Special Weapon . | . . . . . . Impact Weapon . | . . . . . . Slashing Weapon . | . . . . . . Piercing Weapon . | . . . . . . Special Melee Weapon . | . . . . . . Unidentified Prototypes . | . . . . . . Parts Lost . | . . . . . . Power . | . . . . . . Propulsion . | . . . . . . Utility . | . . . . . . Weapon . | . . . . . . Highest Loss Streak . | . . . . . . To Critical Strikes . | . . . . . . Average Slot Usage (%) 90 | . 79 85 76 91 95 Engine 11 | . 14 14 14 14 5 Treads 22 | . . . 17 28 17 Leg 2 | . . . . . 9 Wheel 2 | . 28 28 10 . . Device 1 | . . . . . 4 Storage 14 | . 14 14 15 15 12 Processor 2 | . . . . 1 5 Protection 8 | . . . . 10 10 Ballistic Gun 21 | . 22 28 17 20 26 Peak Build Rating 31 | 6 6 6 21 23 31 Average Rating 17 | 4 5 6 15 16 23 On Entrance 8 | . 6 6 6 21 11 Naked Turns . | . . . . . . Heaviest Build 34 | 14 14 14 24 27 34 Greatest Support 40 | 20 20 20 40 40 40 Greatest Overweight (x) 1 | 1 . . . . 1 Average Overweight (x) . | . . . . . . Largest Inventory Capacity 8 | 8 8 8 8 8 8 Average Capacity 7 | 6 8 8 8 8 8 Most Carried 8 | 7 8 7 8 8 8 Average Carried 6 | 4 6 7 5 6 7 Final Capacity 8 | 8 8 8 8 8 8 Final Carried 8 | 6 7 7 5 8 8 Class Distribution -------------------- 78% | Mutant 14% | Tank 7% | Skirmisher Dominant Class ---------------- Mutant | -10/Materials Mutant | -10/Mines Mutant | -10/Exiles Mutant | -9/Mines Tank | -8/Materials Resources | -11 -10 -10 -10 -9 -8 ----------- Run | Yrd Mat Min Exi Min Mat Matter Collected 654 | 234 . 36 30 144 210 Remotely . | . . . . . . Salvage Created 466 | . . . . 260 206 Parts 27 | . . . . 8 19 Haulers Intercepted . | . . . . . . Recyclers Shooed . | . . . . . . Parts Field Recycled . | . . . . . . Retrieved Matter . | . . . . . . Parts Self-Destructed . | . . . . . . Prevented . | . . . . . . Kills | -11 -10 -10 -10 -9 -8 ------- Run | Yrd Mat Min Exi Min Mat Combat Hostiles Destroyed 21 | . . . . 11 10 Guns 21 | . . . . 11 10 Classes Destroyed 3 | . . . . 2 1 Swarmer 7 | . . . . . 7 Grunt 6 | . . . . 3 3 Assembled 8 | . . . . 8 . Best Kill Streak 4 | . . . . 3 4 Combat Bots Only 4 | . . . . 3 4 Max Kills in Single Turn 2 | . . . . 1 2 Gunslinging 1 | . . . . . 1 Exploded . | . . . . . . Melee . | . . . . . . Uniques/NPCs Destroyed . | . . . . . . Combat | -11 -10 -10 -10 -9 -8 -------- Run | Yrd Mat Min Exi Min Mat Hostile Shots Fired 57 | . . . . 24 33 Missed 16 | . . . . 7 9 Damage Taken 432 | . . . . 250 182 Core 34 | . . . . 21 13 Absorbed by Shields 31 | . . . . . 31 Core Remaining (%) 95 | 100 . . . 91 . Volleys Fired 22 | . . . . 9 13 Largest 3 | . . . . 2 3 Hottest 84 | . . . . 40 84 Shots Fired 92 | . . . . 53 39 Gun 92 | . . . . 53 39 Cannon . | . . . . . . Launcher . | . . . . . . Special . | . . . . . . Kinetic 92 | . . . . 53 39 Thermal . | . . . . . . Explosive . | . . . . . . Electromagnetic . | . . . . . . Robot Hit Streak 11 | . . . . 11 7 Robot Miss Streak 5 | . . . . 3 5 Penetration Max . | . . . . . . Secondary Targets 3 | . . . . . 3 Max Gunslinging Chain 1 | . . . . . 1 Autonomous 36 | . . . . 36 . Shots Hit Robots 62 | . . . . 31 31 Core Hits 41 | . . . . 13 28 Critical Kills . | . . . . . . Critical Parts Destroyed . | . . . . . . Critical Strikes . | . . . . . . Melee Attacks . | . . . . . . Impact . | . . . . . . Slashing . | . . . . . . Piercing . | . . . . . . Sneak Attacks . | . . . . . . Combat Hostiles . | . . . . . . Follow-up Attacks . | . . . . . . Damage Inflicted 1165 | . . . . 712 453 Guns 1165 | . . . . 712 453 Cannons . | . . . . . . Explosions . | . . . . . . Melee . | . . . . . . Ramming . | . . . . . . Kinetic 1165 | . . . . 712 453 Thermal . | . . . . . . Explosive . | . . . . . . Electromagnetic . | . . . . . . Impact . | . . . . . . Slashing . | . . . . . . Piercing . | . . . . . . Highest Corruption . | . . . . . . Average Corruption . | . . . . . . Corruption Purged . | . . . . . . Corruption Blocked . | . . . . . . Overload Shots . | . . . . . . Overflow Damage . | . . . . . . Projectiles . | . . . . . . Explosions . | . . . . . . Melee . | . . . . . . Knockbacks . | . . . . . . Impact . | . . . . . . Kinetic . | . . . . . . Secondary . | . . . . . . Self-Inflicted Damage . | . . . . . . Shots . | . . . . . . Rammed . | . . . . . . Targets Rammed . | . . . . . . Kicked . | . . . . . . Crushed . | . . . . . . Highest Temperature 74 | . . . . 24 74 Average Temperature 24 | . . . . 11 27 Received Heat Transfer 124 | . . . . 92 32 Siege Activations . | . . . . . . Robots Corrupted . | . . . . . . Combat Hostiles . | . . . . . . Parts Fried . | . . . . . . Impact Corruptions . | . . . . . . Robots Melted . | . . . . . . Combat Hostiles . | . . . . . . Parts Melted . | . . . . . . Heat Transferred . | . . . . . . Parts Sabotaged . | . . . . . . Parts Stolen . | . . . . . . Parts Stripped . | . . . . . . Power Chain Reactions . | . . . . . . Alert | -11 -10 -10 -10 -9 -8 ------- Run | Yrd Mat Min Exi Min Mat Peak Influence 186 | . 22 8 . 81 186 Initial 8 | . . 8 . . . Average 30 | . 15 8 . 26 46 Maximum Alert Level . | . . . . . . Low Security (%) 100 | 100 100 100 . 100 100 Level 1 . | . . . . . . Level 2 . | . . . . . . Level 3 . | . . . . . . Level 4 . | . . . . . . Level 5 . | . . . . . . High Security . | . . . . . . Max Security . | . . . . . . Squads Dispatched 1 | . . . . . 1 Investigation . | . . . . . . Extermination . | . . . . . . Reinforcement 1 | . . . . . 1 Assault . | . . . . . . Garrison . | . . . . . . Intercept . | . . . . . . Searches Triggered . | . . . . . . Construction Impeded . | . . . . . . Haulers Reinforced . | . . . . . . Active Scanning Responses . | . . . . . . Cargo Convoy Interrupts . | . . . . . . Stealth | -11 -10 -10 -10 -9 -8 --------- Run | Yrd Mat Min Exi Min Mat Distress Signals 2 | . . . . . 2 Communications Jammed . | . . . . . . Distress Signals . | . . . . . . Times Spotted 35 | . . . . 13 22 Peak Tracking Total 6 | . . . . 3 6 Tactical Retreats 2 | . . . . 2 . Traps | -11 -10 -10 -10 -9 -8 ------- Run | Yrd Mat Min Exi Min Mat Traps Triggered 3 | . 1 . . . 2 Indirectly . | . . . . . . Trap Hack Attempts . | . . . . . . Triggered . | . . . . . . Disarmed . | . . . . . . Reprogrammed . | . . . . . . Reused . | . . . . . . Traps Extracted . | . . . . . . Installed . | . . . . . . Triggered . | . . . . . . Machines | -11 -10 -10 -10 -9 -8 ---------- Run | Yrd Mat Min Exi Min Mat Machines Disabled . | . . . . . . Max in Single Turn . | . . . . . . Machines Repaired . | . . . . . . Machines Dismantled . | . . . . . . Machines Sabotaged . | . . . . . . Overloaded Fab Kills . | . . . . . . Hacking | -11 -10 -10 -10 -9 -8 --------- Run | Yrd Mat Min Exi Min Mat Machines Accessed 4 | . 1 . 1 . 2 Terminals 3 | . 1 . . . 2 Fabricators . | . . . . . . Repair Stations . | . . . . . . Recycling Units . | . . . . . . Scanalyzers . | . . . . . . Garrison Access . | . . . . . . Total Hacks 8 | . 2 . 1 . 5 Successful 5 | . 1 . 1 . 3 Failed 3 | . 1 . . . 2 Catastrophic . | . . . . . . Database Lockouts . | . . . . . . Manual 1 | . . . 1 . . Terminals 7 | . 2 . . . 5 Fabricators . | . . . . . . Repair Stations . | . . . . . . Recycling Units . | . . . . . . Scanalyzers . | . . . . . . Garrison Access . | . . . . . . Terminal Hacks 5 | . 1 . 1 . 3 Branch Access Points 1 | . 1 . . . . Emergency Access Points 1 | . . . . . 1 Scanalyzer Index 1 | . . . . . 1 Locate Traps 1 | . . . . . 1 Derelict Proto ID Bank 1 | . . . 1 . . Fabricator Hacks . | . . . . . . Repair Station Hacks . | . . . . . . Recycling Unit Hacks . | . . . . . . Scanalyzer . | . . . . . . Garrison Access Hacks . | . . . . . . Unauthorized Hacks . | . . . . . . Terminals . | . . . . . . Fabricators . | . . . . . . Repair Stations . | . . . . . . Recycling Units . | . . . . . . Scanalyzers . | . . . . . . Garrison Access . | . . . . . . Data Cores Recovered . | . . . . . . Used . | . . . . . . Hacking Detections 2 | . 1 . . . 1 Full Trace Events . | . . . . . . Feedback Events . | . . . . . . Feedback Blocked . | . . . . . . Robot Schematics Acquired . | . . . . . . Robots Built . | . . . . . . Authchips . | . . . . . . Time . | . . . . . . Total Robot Build Rating . | . . . . . . Part Schematics Acquired . | . . . . . . Parts Built . | . . . . . . Authchips . | . . . . . . Time . | . . . . . . Total Part Build Rating . | . . . . . . Parts Repaired . | . . . . . . Time . | . . . . . . Parts Recycled . | . . . . . . Recycled Matter . | . . . . . . Retrieved Matter . | . . . . . . Retrieved Components . | . . . . . . Parts Scanalyzed . | . . . . . . Part Schematics Acquired . | . . . . . . Parts Damaged . | . . . . . . Bothacking | -11 -10 -10 -10 -9 -8 ------------ Run | Yrd Mat Min Exi Min Mat Used RIF Installer . | . . . . . . Robots Hacked . | . . . . . . Non-combat . | . . . . . . Combat . | . . . . . . Robot Hacks Applied . | . . . . . . Relay Couplers Released . | . . . . . . Fabnet Peak Effective % . | . . . . . . Robots Rewired . | . . . . . . Allies Hacked . | . . . . . . Hacks Repelled . | . . . . . . Allies | -11 -10 -10 -10 -9 -8 -------- Run | Yrd Mat Min Exi Min Mat Total Allies . | . . . . . . Largest Group . | . . . . . . Highest-Rated Group . | . . . . . . Highest-Rated Ally . | . . . . . . Total Orders . | . . . . . . Ally Attacks . | . . . . . . Total Damage . | . . . . . . Kills . | . . . . . . Allies Corrupted . | . . . . . . Allies Melted . | . . . . . . Intel | -11 -10 -10 -10 -9 -8 ------- Run | Yrd Mat Min Exi Min Mat Robot Analysis Total . | . . . . . . Derelict Logs Recovered 2 | . . . . 2 . Drone Launches . | . . . . . . Drone Recoveries . | . . . . . . Exploration | -11 -10 -10 -10 -9 -8 ------------- Run | Yrd Mat Min Exi Min Mat Turns Passed 2287 | 62 73 45 297 1282 528 Spaces Moved 1400 | 57 88 57 244 765 189 Core 11 | 11 . . . . . Treads 1047 | . . . 115 765 167 Legs 22 | . . . . . 22 Wheels 320 | 46 88 57 129 . . Hover . | . . . . . . Flight . | . . . . . . Fastest Speed 50 | 50 80 80 80 160 160 Average Speed 144 | 78 80 80 117 160 188 Slowest Speed 240 | 95 80 80 160 160 240 Overloaded Moves . | . . . . . . Propulsion Burnouts . | . . . . . . Robots Hopped . | . . . . . . Cave-ins Triggered . | . . . . . . Exploration Rate (%) 38 | 4 24 17 64 100 20 Regions Visited 5 Branch Regions 3 Pre-discovered Areas 1 | . . . . 1 . Known Exits Taken 1 | . 1 . . . . Unknown Exits Taken 4 | 1 . 1 1 1 . Scrap Searched 3 | . . . . 3 . Spaces Dug . | . . . . . . Terrain Destroyed 30 | . . . . 30 . Melee . | . . . . . . Projectile 30 | . . . . 30 . AOE . | . . . . . . Terrain Rammed . | . . . . . . Walls Destroyed . | . . . . . . Machines Disabled . | . . . . . . Actions | -11 -10 -10 -10 -9 -8 --------- Run | Yrd Mat Min Exi Min Mat Total 1619 | 74 90 56 256 808 335 Wait 104 | . . . . 17 87 Move 1395 | 56 87 56 243 764 189 Hop . | . . . . . . Pick Up 43 | 12 2 . 3 8 18 Fast Attach . | . . . . . . Attach 24 | 6 1 . 2 3 12 Detach 1 | . . . 1 . . Swap 7 | . . . 2 2 3 Drop 23 | . . . 5 5 13 Fire 22 | . . . . 9 13 Melee . | . . . . . . Ram . | . . . . . . Kick . | . . . . . . Crush . | . . . . . . Escape Stasis . | . . . . . . Rewire . | . . . . . . Trap . | . . . . . . Miscellaneous . | . . . . . . Route ------- -11/Scrapyard -10/Materials -10/Mines -10/Exiles -9/Mines (discovered 2 exits: *Mat x2) -8/Materials History --------- Turn | Location | Event 2 | -11/Scrapyard | Met Revision 17 31 | -11/Scrapyard | Discovered new exit (range 14) 63 | -11/Scrapyard | Entered Materials 77 | -10/Materials | Identified exit to Mines 136 | -10/Materials | Entered Mines 177 | -10/Mines | Deemed a non-threat by the Exiles lab entrance 178 | -10/Mines | Discovered new exit (range 5) 181 | -10/Mines | Entered Exiles 203 | -10/Exiles | Met 8R-AWN 215 | -10/Exiles | Met EX-HEX 236 | -10/Exiles | Met EX-BIN 247 | -10/Exiles | Aligned with FarCom system 248 | -10/Exiles | Given EX-Vault access code 267 | -10/Exiles | Opened EX-Vault 272 | -10/Exiles | Found Prototype Ballistic Gun 274 | -10/Exiles | Identified AWS/Gauss 310 | -10/Exiles | Warned to stay clear of 0b10 Research branches 314 | -10/Exiles | Build established: Mutant 351 | -10/Exiles | Met EX-DEC 464 | -10/Exiles | Discovered new exit (range 11) 478 | -10/Exiles | Left Exiles lab with AWS/Gauss 478 | -10/Exiles | Entered Mines 510 | -9/Mines | Assembled infested the area 515 | -9/Mines | Assisted by a Guerilla fighting off Assembled 689 | -9/Mines | Learned Materials terminal intel 739 | -9/Mines | Discovered new exit (range 7) 773 | -9/Mines | Discovered new exit (range 10) 1176 | -9/Mines | AWS/Gauss suddenly broke down 1245 | -9/Mines | Learned location of Zion (-7) 1760 | -9/Mines | Entered Materials 1760 | -8/Materials | Evolved 4 slots: Propulsion x1, Utility x2, Weapon x1 1761 | -8/Materials | Loaded intel: 10 terminal locations 2288 | -8/Materials | Self-destructed Last Messages --------------- 02080_ G-47 Trooper destroyed. 02083_ Acquired 30 matter. 02094_ G-47 Trooper destroyed. 02099_ Acquired 30 matter. 02104_ K-01 Serf collects debris. 02110_ G-47 Trooper destroyed. 02113_ Acquired 8 matter. 02116_ K-01 Serf collects debris. 02116_ Acquired 22 matter. 02120_ K-01 Serf collects debris. 02223_ S-10 Pest destroyed. 02227_ Switching to secondary target: S-10 Pest. 02230_ S-10 Pest destroyed. 02230_ Switching to secondary target: S-10 Pest. 02230_ S-10 Pest destroyed. 02236_ Dropped Imp. Light Armor Plating. 02237_ Acquired Lgt. Ion Engine. 02262_ R-06 Scavenger collects Flight Unit. 02266_ R-06 Scavenger collects Lgt. Assault Rifle. Map ----- +----------------------------------------------------+ | ????????????????????????????????????? | | ??????????????????????????????????????? | | ????????????????????????????????????????# | | ????????????????????????????????????????# | | ????????????????????????????????????????# | | ????????????????????????????????????????# | | ????????????????????????????????????????# ######## | | ??????????????????????????????????????### ### | | ??????????????????????????????????????# ] # T | | ??????????????????????????????????????# # | | ??????????????????????????????????????# + ! | | ???????????????????????????? ????????# #[ | | ??????????????????????####g#/##???????#[ #% ![= | | ???????????????######## r g #???????## #####+# | | ???????????????# ########## #???#%# | | ???????????????# ##### # | | ????????????????? T # | | ??????????????????? # | | ????????????????????? #######+### # | | ??????????????????????? r ????# # | | ????????????????????????# ###### # | | ????????????????????????# # # # T | | ????????????????????????# + # # | | ????????????????????????# #%[ # # [ | | ????????????????????????# # + # [!! | | ????????????????????????#@ # ######## [!! | | ????????????????????????# # #??????# [!! | | ????????????????????????# [# #??????# | | ????????????????????????# %w= #??????# * | | ????????????????????????# % #= #??????#C ## | | ????????????????????????# !######??????#+#######^ | | ????????????????????????# #???????????????????# | | ????????????????????????# #???????????????????# | | ????????????????????????# #???????????????????# | | ????????????????????????# #???????????????????# | | ????????????????????????# #????????+??????????# | | ???????????????????????? ?????????????T?????## | | ???????????????????????? ????????????????????# | | ??????????????????????? t ????????????????????# | | ???????????????????????######????????????????????# | | ?????????????????????????????????????????????????# | | ?????????????????????????????????????????????????# | | ?????????????????????????????????????????????????# | | ??????????????????????????????? ##########+###### | | ???????????????????????????????? | | ??????????????????????????????T? | | ????????????????????????????????? | | ?????????????????????????????????###+####### | | ?????????????????????????????????# + | | ?????????????????????????????????# ####### | +----------------------------------------------------+ Best States ------------- Heat Dissipation 31 Energy Generation 14 Energy Capacity 265 Matter Stores 500 Matter Capacity 500 Sight Range 18 Terrain Scan Density 10 Armor Coverage 375 Evasion (%) 50 Targeting Accuracy 6 Recoil Reduction 2 Item Schematics ----------------- None Robot Schematics ------------------ None Fabricated ------------ Nothing Alien Tech Used ----------------- None Achievements -------------- None Challenges ------------ None Game ------ Seed DimensionalArmoredSink Manual? 0 Play Time 00:14:15 Cumulative 93.6 hours Start 2025.03.08 @ 17:01:02 End 2025.05.03 @ 12:56:08 Sessions 3 Manual Loads 0 Difficulty Rogue Special Mode None Game No. 115 Rogue 115 Adventurer 0 Explorer 0 Win Type - Total 0 Types 0/0/0/0/0/0/0/0/0 Lore% 31 Gallery% 49 Achievement% 42 Wizard Run 0 Options --------- Layout 2 ASCII 0 Keyboard 0 Movement Numpad Keybinds 0 Fullscreen 1 Font 24/Smallcaps Map View 50x44 Zoom Use 0% Tactical HUD 1 Map Filters NONE Filters NONE Steam 1 RUN: c5c8e35c-566e-4691-bdbf-14aaeb3a3a78